fUST/lending_fUST_20240204
["ID","MTS","AMOUNT","RATE_DAILY","PERIOD"]
[313232397,1706981434212,-500.0,0.00025805,2]
[313232398,1706981434222,-500.0,0.00025805,2]
[313232399,1706981434231,-480.45937752,0.00025805,2]
[313232400,1706981434241,-500.0,0.00025805,2]
[313232401,1706981434251,-500.0,0.00025805,2]
[313232402,1706981434261,-500.0,0.00025805,2]
[313232403,1706981434270,-284.42079459,0.00025805,2]
[313232404,1706981434283,-500.0,0.00025805,2]
[313232405,1706981434292,-500.0,0.00025805,2]
[313232406,1706981434301,-405.27456439,0.00025805,2]
[313232407,1706981434310,-500.0,0.00025805,2]
[313232408,1706981434319,-500.0,0.00025805,2]
[313232409,1706981434328,-500.0,0.00025805,2]
[313232410,1706981434338,-500.0,0.00025805,2]
[313232411,1706981434347,-500.0,0.00025805,2]
[313232412,1706981434358,-500.0,0.00025805,2]
[313232413,1706981434368,-161.32151753,0.00025805,2]
[313232414,1706981434377,-500.0,0.00025805,2]
[313232415,1706981434387,-500.0,0.00025805,2]
[313232416,1706981434397,-500.0,0.00025805,2]
[313232417,1706981434406,-500.0,0.00025805,2]
[313232418,1706981434416,-500.0,0.00025805,2]
[313232419,1706981434426,-500.0,0.00025805,2]
[313232420,1706981434435,-500.0,0.00025805,2]
[313232421,1706981434444,-500.0,0.00025805,2]
[313232422,1706981434454,-500.0,0.00025805,2]
[313232423,1706981434463,-500.0,0.00025805,2]
[313232424,1706981434473,-500.0,0.00025805,2]
[313232425,1706981434483,-500.0,0.00025805,2]
[313232426,1706981434492,-500.0,0.00025805,2]
[313232427,1706981434501,-500.0,0.00025805,2]
[313232428,1706981434510,-500.0,0.00025805,2]
[313232429,1706981434519,-500.0,0.00025805,2]
[313232430,1706981434535,-500.0,0.00025805,2]
[313232431,1706981434544,-500.0,0.00025805,2]
[313232432,1706981434553,-500.0,0.00025805,2]
[313232433,1706981434563,-500.0,0.00025805,2]
[313232434,1706981434572,-500.0,0.00025805,2]
[313232435,1706981434582,-500.0,0.00025805,2]
[313232436,1706981434591,-500.0,0.00025805,2]
[313232437,1706981434600,-500.0,0.00025805,2]
[313232438,1706981434610,-377.67719187,0.00025805,2]
[313232439,1706981434619,-500.0,0.00025805,2]
[313232440,1706981434628,-500.0,0.00025805,2]
[313232441,1706981434638,-500.0,0.00025805,2]
[313232442,1706981434647,-500.0,0.00025805,2]
[313232443,1706981434656,-500.0,0.00025805,2]
[313232444,1706981434666,-500.0,0.00025805,2]
[313232445,1706981434675,-500.0,0.00025805,2]
[313232446,1706981434684,-500.0,0.00025805,2]
[313232447,1706981434694,-500.0,0.00025805,2]
[313232448,1706981434704,-500.0,0.00025805,2]
[313232449,1706981434714,-500.0,0.00025805,2]
[313232450,1706981434724,-500.0,0.00025805,2]
[313232451,1706981434733,-500.0,0.00025805,2]
[313232452,1706981434743,-500.0,0.00025805,2]
[313232453,1706981434752,-182.56280412,0.00025805,2]
[313232454,1706981434762,-500.0,0.00025805,2]
[313232455,1706981434773,-500.0,0.00025805,2]
[313232456,1706981434791,-500.0,0.00025805,2]
[313232457,1706981434800,-500.0,0.00025805,2]
[313232458,1706981434810,-500.0,0.00025805,2]
[313232459,1706981434820,-500.0,0.00025805,2]
[313232460,1706981434831,-500.0,0.00025805,2]
[313232461,1706981434841,-500.0,0.00025805,2]
[313232462,1706981434851,-500.0,0.00025805,2]
[313232463,1706981434861,-545.03050715,0.00025805,2]
[313232464,1706981434871,-500.0,0.00025805,2]
[313232465,1706981434881,-500.0,0.00025805,2]
[313232466,1706981434890,-500.0,0.00025805,2]
[313232467,1706981434900,-500.0,0.00025805,2]
[313232468,1706981434913,-500.0,0.00025805,2]
[313232469,1706981434922,-500.0,0.00025805,2]
[313232470,1706981434932,-500.0,0.00025805,2]
[313232471,1706981434942,-500.0,0.00025805,2]
[313232472,1706981434952,-500.0,0.00025805,2]
[313232473,1706981434961,-500.0,0.00025805,2]
[313232474,1706981434971,-500.0,0.00025805,2]
[313232475,1706981434981,-500.0,0.00025805,2]
[313232476,1706981434991,-500.0,0.00025805,2]
[313232477,1706981435001,-614.1343977,0.00025805,2]
[313232478,1706981435011,-500.0,0.00025805,2]
[313232479,1706981435020,-500.0,0.00025805,2]
[313232480,1706981435034,-507.75424716,0.00025805,2]
[313232481,1706981435044,-500.0,0.00025805,2]
[313232482,1706981435053,-500.0,0.00025805,2]
[313232483,1706981435063,-241.0,0.00025805,2]
[313232484,1706981435073,-500.0,0.00025805,2]
[313232485,1706981435082,-500.0,0.00025805,2]
[313232486,1706981435092,-500.0,0.00025805,2]
[313232487,1706981435101,-500.0,0.00025805,2]
[313232488,1706981435111,-500.0,0.00025805,2]
[313232489,1706981435122,-500.0,0.00025805,2]
[313232490,1706981435131,-500.0,0.00025805,2]
[313232491,1706981435141,-500.0,0.00025805,2]
[313232492,1706981435151,-500.0,0.00025805,2]
[313232493,1706981435161,-500.0,0.00025805,2]
[313232494,1706981435171,-500.0,0.00025805,2]
[313232495,1706981435180,-500.0,0.00025805,2]
[313232496,1706981435189,-500.0,0.00025805,2]
[313232497,1706981435199,-74516.66733617,0.00025808,2]
[313232498,1706981435208,-50000.0,0.00025808,2]
[313232499,1706981435218,-58131.0414051,0.00025808,2]
[313232500,1706981435227,-12987.45494229,0.00025808,2]
[313232501,1706981435237,-33473.73826881,0.00025815,2]
[313232502,1706981435246,-391.0,0.00026632,15]
[313232503,1706981435256,-580.99550269,0.00026648,3]
[313232504,1706981435265,-232.57161106,0.00027283,2]
[313232505,1706981435275,-500.0,0.00027397,2]
[313232506,1706981435287,-516.50741356,0.00027397,2]
[313232507,1706981435297,-500.0,0.00027397,2]
[313232508,1706981435306,-500.0,0.00027397,2]
[313232509,1706981435315,-500.0,0.00027397,2]
[313232510,1706981435324,-417.62531425,0.00027397,2]
[313232511,1706981435333,-506.59111545,0.00027397,2]
[313232512,1706981435343,-508.84074128,0.00027397,2]
[313232513,1706981435353,-504.62288054,0.00027397,2]
[313232514,1706981435363,-500.0,0.00027397,2]
[313232515,1706981435372,-513.93419891,0.00027397,2]
[313232516,1706981435382,-500.0,0.00027397,2]
[313232517,1706981435392,-505.88117629,0.00027397,2]
[313232518,1706981435401,-503.81745858,0.00027397,2]
[313232519,1706981435411,-500.0,0.00027397,2]
[313232520,1706981435421,-525.34101276,0.00027397,2]
[313232521,1706981435430,-500.0,0.00027397,2]
[313232522,1706981435439,-500.0,0.00027397,2]
[313232523,1706981435448,-500.0,0.00027397,2]
[313232524,1706981435459,-500.0,0.00027397,2]
[313232525,1706981435469,-500.0,0.00027397,2]
[313232526,1706981435478,-500.0,0.00027397,2]
[313232527,1706981435488,-320.28093465,0.00027397,2]
[313232528,1706981435498,-500.0,0.00027397,2]
[313232529,1706981435507,-500.0,0.00027397,2]
[313232530,1706981435516,-500.0,0.00027397,2]
[313232531,1706981435528,-505.61619828,0.00027397,2]
[313232532,1706981435537,-500.0,0.00027397,2]
[313232533,1706981435547,-501.37259724,0.00027397,2]
[313232534,1706981435556,-500.0,0.00027397,2]
[313232535,1706981435566,-503.37405009,0.00027397,2]
[313232536,1706981435575,-500.0,0.00027397,2]
[313232537,1706981435585,-500.0,0.00027397,2]
[313232538,1706981435594,-527.02232909,0.00027397,2]
[313232539,1706981435603,-505.95287227,0.00027397,2]
[313232540,1706981435613,-500.0,0.00027397,2]
[313232541,1706981435622,-240.43038265,0.00027397,2]
[313232542,1706981435631,-501.95979755,0.00027397,2]
[313232543,1706981435640,-500.0,0.00027397,2]
[313232544,1706981435649,-501.56367019,0.00027397,2]
[313232545,1706981435658,-530.44382497,0.00027397,2]
[313232546,1706981435667,-509.16728415,0.00027397,2]
[313232547,1706981435676,-500.0,0.00027397,2]
[313232548,1706981435685,-500.0,0.00027397,2]
[313232549,1706981435694,-180.9410393,0.00027397,2]
[313232550,1706981435703,-500.0,0.00027397,2]
[313232551,1706981435712,-155.02015262,0.00027397,2]
[313232552,1706981435721,-500.0,0.00027397,2]
[313232553,1706981435730,-500.0,0.00027397,2]
[313232554,1706981435740,-500.0,0.00027397,2]
[313232555,1706981435749,-500.0,0.00027397,2]
[313232556,1706981435758,-500.0,0.00027397,2]
[313232557,1706981435768,-500.0,0.00027397,2]
[313232558,1706981435777,-500.0,0.00027397,2]
[313232559,1706981435787,-1576.41,0.00027397,2]
[313232560,1706981435797,-500.0,0.00027397,2]
[313232561,1706981435806,-500.0,0.00027397,2]
[313232562,1706981435815,-505.91505518,0.00027397,2]
[313232563,1706981435825,-500.0,0.00027397,2]
[313232564,1706981435834,-552.69410233,0.00027397,2]
[313232565,1706981435844,-500.0,0.00027397,2]
[313232566,1706981435853,-500.0,0.00027397,2]
[313232567,1706981435863,-500.0,0.00027397,2]
[313232568,1706981435872,-500.0,0.00027397,2]
[313232569,1706981435882,-500.0,0.00027397,2]
[313232570,1706981435894,-500.0,0.00027397,2]
[313232571,1706981435905,-500.0,0.00027397,2]
[313232572,1706981435915,-500.0,0.00027397,2]
[313232573,1706981435924,-500.0,0.00027397,2]
[313232574,1706981435934,-500.0,0.00027397,2]
[313232575,1706981435944,-500.0,0.00027397,2]
[313232576,1706981435953,-503.63711727,0.00027397,2]
[313232577,1706981435963,-506.1910347,0.00027397,2]
[313232578,1706981435974,-301.93124772,0.00027397,2]
[313232579,1706981435984,-505.61402559,0.00027397,7]
[313232580,1706981435993,-500.0,0.00027397,2]
[313232581,1706981436003,-500.0,0.00027397,2]
[313232582,1706981436013,-500.0,0.00027397,2]
[313232583,1706981436022,-500.0,0.00027397,2]
[313232584,1706981436033,-516.25072468,0.00027397,2]
[313232585,1706981436042,-500.0,0.00027397,2]
[313232586,1706981436052,-549.09261835,0.00027397,2]
[313232587,1706981436062,-500.0,0.00027397,2]
[313232588,1706981436072,-500.0,0.00027397,2]
[313232589,1706981436082,-500.0,0.00027397,2]
[313232590,1706981436091,-500.0,0.00027397,2]
[313232591,1706981436101,-503.75418424,0.00027397,2]
[313232592,1706981436110,-500.0,0.00027397,2]
[313232593,1706981436120,-176.33972775,0.00027397,2]
[313232594,1706981436129,-500.0,0.00027397,2]
[313232595,1706981436138,-500.0,0.00027397,2]
[313232596,1706981436148,-500.0,0.00027397,2]
[313232597,1706981436157,-500.0,0.00027397,2]
[313232598,1706981436166,-500.49854135,0.00027397,2]
[313232599,1706981436175,-166.46660755,0.00027397,2]
[313232600,1706981436185,-308.37268485,0.00027397,2]
[313232601,1706981436194,-800.57,0.00027397,2]
[313232602,1706981436204,-500.0,0.00027397,2]
[313232603,1706981436213,-500.0,0.00027397,2]
[313232604,1706981436223,-500.0,0.00027397,2]
[313232605,1706981436233,-500.0,0.00027397,2]
[313232606,1706981436244,-500.0,0.00027397,2]
[313232607,1706981436254,-624.15640998,0.00027397,2]
[313232608,1706981436263,-574.81,0.00027397,2]
[313232609,1706981436273,-6330.0,0.00027397,2]
[313232610,1706981436285,-500.0,0.00027397,2]
[313232611,1706981436294,-500.0,0.00027397,2]
[313232612,1706981436304,-500.0,0.00027397,2]
[313232613,1706981436313,-686.67665126,0.00027397,2]
[313232614,1706981436323,-504.99545555,0.00027671,2]
[313232615,1706981436332,-503.93231267,0.00027671,2]
[313232616,1706981436341,-500.0,0.00027671,2]
[313232617,1706981436352,-500.0,0.00027671,2]
[313232618,1706981436361,-445.72663944,0.00027671,2]
[313232619,1706981436370,-500.0,0.00027671,2]
[313232620,1706981436380,-500.0,0.00027671,2]
[313232621,1706981436389,-504.73072043,0.00027671,2]
[313232622,1706981436398,-500.0,0.00027671,2]
[313232623,1706981436407,-500.0,0.00027671,2]
[313232624,1706981436416,-500.0,0.00027671,2]
[313232625,1706981436426,-1576.41,0.00027671,2]
[313232626,1706981436435,-500.0,0.00027671,2]
[313232627,1706981436444,-500.0,0.00027671,2]
[313232628,1706981436453,-500.0,0.00027671,2]
[313232629,1706981436462,-500.0,0.00027671,2]
[313232630,1706981436471,-500.0,0.00027671,2]
[313232631,1706981436480,-500.0,0.00027671,2]
[313232632,1706981436490,-588.78001262,0.00027671,2]
[313232633,1706981436499,-500.0,0.00027671,2]
[313232634,1706981436509,-500.0,0.00027671,2]
[313232635,1706981436518,-500.0,0.00027671,2]
[313232636,1706981436528,-800.57,0.00027671,2]
[313232637,1706981436537,-500.0,0.00027671,2]
[313232638,1706981436547,-500.0,0.00027671,2]
[313232639,1706981436556,-574.81,0.00027671,2]
[313232640,1706981436565,-6330.0,0.00027671,2]
[313232641,1706981436575,-500.0,0.00027671,2]
[313232642,1706981436584,-4052.67293819,0.00027678,2]
[313232643,1706981436593,-500.0,0.00027945,2]
[313232644,1706981436602,-500.0,0.00027945,2]
[313232645,1706981436611,-1576.41,0.00027945,2]
[313232646,1706981436621,-500.0,0.00027945,2]
[313232647,1706981436632,-500.0,0.00027945,2]
[313232648,1706981436642,-500.0,0.00027945,2]
[313232649,1706981436651,-500.0,0.00027945,2]
[313232650,1706981436661,-800.57,0.00027945,2]
[313232651,1706981436670,-500.0,0.00027945,2]
[313232652,1706981436763,-574.81,0.00027945,2]
[313232653,1706981436774,-3278.4136504,0.00027945,2]
[313232673,1706981438629,-326.17134224,0.00022,2]
[313232674,1706981438638,-3170.08,0.00027397,2]
[313232675,1706981438647,-3170.08,0.00027671,2]
[313232676,1706981438657,-1213.22,0.00027935,3]
[313232677,1706981438667,-3051.5863496,0.00027945,2]
[313232678,1706981438678,-3170.08,0.00027945,2]
[313232679,1706981438687,-396.66740215,0.00028219,2]
[313232680,1706981438697,-1576.41,0.00028219,2]
[313232681,1706981438706,-500.0,0.00028219,2]
[313232682,1706981438715,-500.0,0.00028219,2]
[313232683,1706981438725,-500.0,0.00028219,2]
[313232684,1706981438734,-500.0,0.00028219,2]
[313232685,1706981438743,-800.57,0.00028219,2]
[313232686,1706981438752,-500.0,0.00028219,2]
[313232687,1706981438761,-574.81,0.00028219,2]
[313232688,1706981438770,-6330.0,0.00028219,2]
[313232689,1706981438780,-3170.08,0.00028219,2]
[313232690,1706981438789,-8668.59935887,0.00028384,4]
[313232691,1706981438798,-1576.41,0.00028493,2]
[313232692,1706981438807,-500.0,0.00028493,2]
[313232693,1706981438817,-500.0,0.00028493,2]
[313232694,1706981438828,-500.0,0.00028493,2]
[313232695,1706981438839,-500.0,0.00028493,2]
[313232696,1706981438848,-800.57,0.00028493,2]
[313232697,1706981438857,-500.0,0.00028493,2]
[313232698,1706981438866,-574.81,0.00028493,2]
[313232699,1706981438875,-6330.0,0.00028493,2]
[313232700,1706981438885,-3170.08,0.00028493,2]
[313232701,1706981438895,-5000.0,0.00028603,5]
[313232702,1706981438905,-1576.41,0.00028767,2]
[313232703,1706981438918,-500.0,0.00028767,2]
[313232704,1706981438927,-500.0,0.00028767,2]
[313232705,1706981438938,-500.0,0.00028767,2]
[313232706,1706981438947,-500.0,0.00028767,2]
[313232707,1706981438956,-800.57,0.00028767,2]
[313232708,1706981438965,-500.0,0.00028767,2]
[313232709,1706981438975,-574.81,0.00028767,2]
[313232710,1706981438985,-6330.0,0.00028767,2]
[313232711,1706981438994,-3170.08,0.00028767,2]
[313232712,1706981439004,-232.57161106,0.00028857,2]
[313232713,1706981439013,-1576.41,0.00029041,2]
[313232714,1706981439023,-500.0,0.00029041,2]
[313232715,1706981439035,-500.0,0.00029041,2]
[313232716,1706981439045,-500.0,0.00029041,2]
[313232717,1706981439054,-500.0,0.00029041,2]
[313232718,1706981439063,-800.57,0.00029041,2]
[313232719,1706981439072,-500.0,0.00029041,2]
[313232720,1706981439081,-574.81,0.00029041,2]
[313232721,1706981439090,-6330.0,0.00029041,2]
[313232722,1706981439100,-3170.08,0.00029041,2]
[313232723,1706981439109,-200.0,0.00029295,15]
[313232724,1706981439119,-348.0,0.00029295,15]
[313232725,1706981439129,-1576.41,0.00029315,2]
[313232726,1706981439138,-500.0,0.00029315,2]
[313232727,1706981439148,-500.0,0.00029315,2]
[313232728,1706981439158,-500.0,0.00029315,2]
[313232729,1706981439168,-564.61031881,0.00029315,2]
[313232730,1706981439177,-800.57,0.00029315,2]
[313232731,1706981439187,-500.0,0.00029315,2]
[313232732,1706981439196,-574.81,0.00029315,2]
[313232733,1706981439206,-6330.0,0.00029315,2]
[313232734,1706981439214,-3170.08,0.00029315,2]
[313232735,1706981439224,-306.0,0.00029315,2]
[313232736,1706981439233,-153.4634771,0.00029315,2]
[313232737,1706981439242,-403.7212813,0.00029315,2]
[313232738,1706981439251,-306.0,0.00029315,2]
[313232739,1706981439260,-307.3855345,0.00029315,2]
[313232740,1706981439269,-420.4280906,0.00029315,2]
[313232741,1706981439279,-207.7973928,0.00029315,2]
[313232742,1706981439288,-153.0,0.00029315,2]
[313232743,1706981439297,-153.0,0.00029315,2]
[313232744,1706981439306,-199.7424242,0.00029315,2]
[313232745,1706981439316,-199.7424242,0.00029315,2]
[313232746,1706981439325,-199.7424242,0.00029315,2]
[313232747,1706981439334,-1576.41,0.00029589,2]
[313232748,1706981439343,-500.0,0.00029589,2]
[313232749,1706981439351,-500.0,0.00029589,2]
[313232750,1706981439361,-500.0,0.00029589,2]
[313232751,1706981439370,-800.57,0.00029589,2]
[313232752,1706981439379,-500.0,0.00029589,2]
[313232753,1706981439388,-574.81,0.00029589,2]
[313232754,1706981439397,-6330.0,0.00029589,2]
[313232755,1706981439406,-3170.08,0.00029589,2]
[313232756,1706981439415,-1576.70095315,0.00029678,5]
[313232757,1706981439424,-151.0,0.00029686,2]
[313232758,1706981439434,-155.3077794,0.00029712,2]
[313232759,1706981439444,-450.0,0.00029779,2]
[313232760,1706981439454,-450.0,0.00029779,2]
[313232761,1706981439464,-450.0,0.00029779,2]
[313232762,1706981439475,-450.0,0.00029779,2]
[313232763,1706981439485,-450.0,0.00029779,2]
[313232764,1706981439494,-450.0,0.00029779,2]
[313232765,1706981439505,-450.0,0.00029779,2]
[313232766,1706981439514,-450.0,0.00029779,2]
[313232767,1706981439524,-450.0,0.00029779,2]
[313232768,1706981439535,-450.0,0.00029779,2]
[313232769,1706981439545,-139578.65368135,0.0002978,2]
[313232770,1706981439555,-151.0,0.0002978,2]
[313232771,1706981439566,-287.482269,0.0002978,2]
[313232772,1706981439575,-151.0,0.0002978,2]
[313232773,1706981439584,-151.0,0.0002978,2]
[313232774,1706981439593,-151.0,0.0002978,2]
[313232775,1706981439602,-312.603768,0.00029847,2]
[313232776,1706981439613,-237.48398931,0.00029861,2]
[313232777,1706981439624,-1576.41,0.00029863,2]
[313232778,1706981439634,-500.0,0.00029863,2]
[313232779,1706981439644,-500.0,0.00029863,2]
[313232780,1706981439653,-800.57,0.00029863,2]
[313232781,1706981439664,-500.0,0.00029863,2]
[313232782,1706981439674,-574.81,0.00029863,2]
[313232783,1706981439684,-6330.0,0.00029863,2]
[313232784,1706981439694,-3170.08,0.00029863,2]
[313232785,1706981439704,-1176.93628895,0.00029878,2]
[313232786,1706981439714,-2051.54150847,0.00029878,2]
[313232787,1706981439723,-199.53725951,0.00029878,2]
[313232788,1706981439733,-19733.33425301,0.00029878,2]
[313232789,1706981439743,-1743.62109759,0.00029878,2]
[313232790,1706981439754,-3751.65024701,0.00029878,2]
[313232791,1706981439763,-312.93612725,0.00029878,2]
[313232792,1706981439775,-3198.8896153,0.00029878,2]
[313232793,1706981439786,-155.02170304,0.00029878,2]
[313232794,1706981439795,-300.0,0.00029878,2]
[313232795,1706981439804,-2000.65940207,0.00029878,10]
[313232796,1706981439815,-105938.32338304,0.0002988,2]
[313232797,1706981439825,-608.02615365,0.0002988,2]
[313232798,1706981439835,-500.0,0.0002988,2]
[313232799,1706981439845,-151.0,0.0002988,2]
[313232800,1706981439854,-151.0,0.0002988,2]
[313232801,1706981439863,-151.0,0.0002988,2]
[313232802,1706981439871,-151.0,0.0002988,2]
[313232803,1706981439881,-288.8548,0.000299,2]
[313232804,1706981439890,-2000.0,0.0002998,30]
[313232805,1706981439904,-155.63392349,0.00029996,2]
[313232806,1706981439913,-11098.28935323,0.00029999,3]
[313232807,1706981439922,-2003.21520285,0.0003,9]
[313232808,1706981439931,-96189.95304197,0.0003,2]
[313232809,1706981439943,-2985.57715479,0.0003,4]
[313232810,1706981439953,-1308.16081559,0.0003,4]
[313232811,1706981439963,-503.49905931,0.0003,14]
[313232812,1706981439973,-244.74571563,0.0003,4]
[313232813,1706981439984,-3394.18080803,0.0003,2]
[313232814,1706981439994,-8594.91665517,0.0003,2]
[313232815,1706981440003,-155.0310062,0.0003,4]
[313232816,1706981440012,-5490.0,0.0003,7]
[313232817,1706981440022,-689.75087445,0.0003,4]
[313232818,1706981440033,-32090.70044907,0.0003,4]
[313232819,1706981440043,-1000.0,0.0003,7]
[313232820,1706981440052,-1000.0,0.0003,7]
[313232821,1706981440062,-548.0,0.0003,7]
[313232822,1706981440071,-14321.99456673,0.0003,4]
[313232837,1706981441701,-500.0,0.00025804,2]
[313232839,1706981441711,-500.0,0.00025804,2]
[313232841,1706981441720,-237.76771919,0.00025804,2]
[313232843,1706981441729,-500.0,0.00025804,2]
[313232845,1706981441738,-500.0,0.00027397,2]
[313232847,1706981441747,-69.51350981,0.00027671,2]
[313232891,1706981443498,-629.03572417,0.00025804,2]
[313232892,1706981443508,-500.0,0.00025804,2]
[313232893,1706981443517,-500.0,0.00025804,2]
[313232894,1706981443527,-250.0,0.00025804,2]
[313232895,1706981443537,-500.0,0.00025804,2]
[313232896,1706981443546,-500.0,0.00025804,2]
[313232897,1706981443555,-81.20405416,0.00025804,2]
[313233007,1706981465604,904.14883173,0.0001991,2]
[313233018,1706981592368,300.0,0.0002,2]
[313233102,1706982514413,168.050695,0.00019584,2]
[313233103,1706982523643,155.01550127,0.00019486,2]
[313233104,1706982538399,244.672292,0.0001987,2]
[313233151,1706982632677,-155.02015262,0.0002082,2]
[313233153,1706982632687,-500.0,0.00020821,2]
[313233155,1706982632697,-1744.20188823,0.00020821,2]
[313233157,1706982632706,-357.57084942,0.00020821,2]
[313233159,1706982632715,-19739.90607694,0.00020821,2]
[313233161,1706982632724,-743.18,0.00020822,3]
[313233163,1706982632733,-1089.36,0.00020822,3]
[313233165,1706982632742,-907.8,0.00020822,3]
[313233167,1706982632752,-155.02015262,0.00020824,4]
[313233169,1706982632761,-445.81031242,0.00020825,2]
[313233171,1706982632771,-155.02015262,0.00020826,2]
[313233173,1706982632780,-589.57572061,0.00020826,2]
[313233175,1706982632789,-3752.87220782,0.00020827,2]
[313233177,1706982632798,-2820.01011613,0.00020827,2]
[313233179,1706982632808,-45354.33323091,0.00020832,2]
[313233181,1706982632819,-38510.8473533,0.00020832,2]
[313233183,1706982632829,-1000.0,0.00020838,2]
[313233185,1706982632841,-1000.0,0.00020838,2]
[313233187,1706982632851,-1000.0,0.00020838,2]
[313233189,1706982632860,-1000.0,0.00020838,2]
[313233191,1706982632870,-1000.0,0.00020838,2]
[313233193,1706982632879,-1000.0,0.00020838,2]
[313233195,1706982632889,-169.752509,0.00020988,2]
[313233196,1706982632898,-166.666666,0.00021918,2]
[313233197,1706982632907,-3977.44618093,0.00022,2]
[313233199,1706982632916,-326.17134224,0.00022,2]
[313233201,1706982632925,-426.88835692,0.00022,2]
[313233202,1706982632934,-166.666666,0.00022431,2]
[313233203,1706982632943,-166.666666,0.00022944,2]
[313233205,1706982632953,-155.23228967,0.00022998,2]
[313233206,1706982632962,-9959.98060866,0.00023,2]
[313233208,1706982632972,-1262.10938839,0.00023,2]
[313233209,1706982632982,-200.0,0.00023036,7]
[313233211,1706982632991,-166.666666,0.00023456,2]
[313233213,1706982633001,-166.666666,0.00023969,2]
[313233215,1706982633010,-4035.82532571,0.00024,2]
[313233217,1706982633020,-1559.62550452,0.00024346,2]
[313233219,1706982633028,-1087.01742622,0.00024349,2]
[313233221,1706982633038,-190.14798476,0.00024349,2]
[313233223,1706982633047,-403.26246864,0.00024349,2]
[313233225,1706982633056,-172.82677228,0.00024349,2]
[313233227,1706982633066,-166.666666,0.00024482,2]
[313233229,1706982633075,-186.05728892,0.0002486,2]
[313233231,1706982633084,-500.0,0.00024899,2]
[313233233,1706982633094,-599.0,0.00024899,2]
[313233235,1706982633103,-500.0,0.00024899,2]
[313233236,1706982633112,-500.0,0.00024899,2]
[313233238,1706982633121,-500.0,0.00024899,2]
[313233240,1706982633131,-400.14183261,0.00024899,2]
[313233242,1706982633140,-500.0,0.00024899,2]
[313233244,1706982633150,-500.0,0.00024899,2]
[313233246,1706982633159,-319.42627717,0.00024899,2]
[313233248,1706982633168,-500.0,0.00024899,2]
[313233250,1706982633177,-500.0,0.00024899,2]
[313233252,1706982633187,-500.0,0.00024899,2]
[313233254,1706982633196,-500.0,0.00024899,2]
[313233256,1706982633205,-500.0,0.00024899,2]
[313233258,1706982633215,-500.0,0.00024899,2]
[313233260,1706982633224,-500.0,0.00024899,2]
[313233262,1706982633234,-354.28742876,0.00024899,2]
[313233264,1706982633244,-500.0,0.00024899,2]
[313233266,1706982633255,-500.0,0.00024899,2]
[313233268,1706982633265,-331.250712,0.00024899,2]
[313233270,1706982633274,-500.0,0.00024899,2]
[313233272,1706982633283,-589.65903491,0.00024899,2]
[313233274,1706982633296,-500.0,0.00024899,2]
[313233276,1706982633305,-427.02283656,0.00024899,2]
[313233278,1706982633314,-205.90721912,0.00024899,2]
[313233280,1706982633325,-195.25389672,0.000249,2]
[313233282,1706982633337,-79919.05344019,0.000249,2]
[313233328,1706982638666,-756.5,0.0002489,3]
[313233330,1706982638676,-172277.6346206,0.000249,2]
[313233332,1706982638685,-499.59176388,0.0002496,5]
[313233333,1706982638694,-155.01860223,0.00025,2]
[313233335,1706982638703,-3198.8896153,0.00025,2]